[Event "*** Titled Tuesday Blitz"]
[Site "Chess.com"]
[Date "2018.12.04"]
[Round "9"]
[White "ENEASZ"]
[Black "ChainsOfFantasia"]
[Result "0-1"]
[WhiteElo "2547"]
[BlackElo "2400"]
[TimeControl "180+2"]
[EndTime "15:08:22 PST"]
[Termination "ChainsOfFantasia won by resignation"]

1. e4 {[%clk 0:03:01.9]} 1... e6 {[%clk 0:03:00.7]} 2. d4 {[%clk 0:03:02.4]}
2... d5 {[%clk 0:03:02.6]} 3. Bd3 {[%clk 0:03:03.7]} 3... dxe4 {[%clk
0:03:03.2]} 4. Bxe4 {[%clk 0:03:05.6]} 4... Nf6 {[%clk 0:03:03.8]} 5. Bf3 {[%clk
0:03:06.8]} 5... c5 {[%clk 0:03:05.4]} 6. Ne2 {[%clk 0:03:07.8]} 6... Nc6 {[%clk
0:03:07]} 7. Be3 {[%clk 0:03:08.8]} 7... e5 {[%clk 0:03:07.6]} 8. Bxc6+ {[%clk
0:02:50.9]} 8... bxc6 {[%clk 0:03:09.5]} 9. dxe5 {[%clk 0:02:44]} 9... Qxd1+
{[%clk 0:03:11.4]} 10. Kxd1 {[%clk 0:02:44.8]} 10... Ng4 {[%clk 0:03:13.3]} 11.
Nbc3 {[%clk 0:02:44.5]} 11... Nxe5 {[%clk 0:03:14.1]} 12. b3 {[%clk 0:02:35.9]}
12... Ng4 {[%clk 0:03:14.6]} 13. Na4 {[%clk 0:02:23.2]} 13... Nxe3+ {[%clk
0:03:12.5]} 14. fxe3 {[%clk 0:02:25.1]} 14... Bg4 {[%clk 0:03:08.5]} 15. c4
{[%clk 0:02:23]} 15... O-O-O+ {[%clk 0:03:04.9]} 16. Ke1 {[%clk 0:02:24.1]}
16... Be7 {[%clk 0:02:52.6]} 17. Nac3 {[%clk 0:02:19.7]} 17... Bf6 {[%clk
0:02:50.6]} 18. Rc1 {[%clk 0:02:15]} 18... Rhe8 {[%clk 0:02:48.8]} 19. Kf2
{[%clk 0:02:13.4]} 19... Rd2 {[%clk 0:02:45.8]} 20. h3 {[%clk 0:02:04]} 20...
Bxe2 {[%clk 0:02:10.9]} 21. Nxe2 {[%clk 0:02:04.4]} 21... Bg5 {[%clk 0:02:09.2]}
22. Rc3 {[%clk 0:02:00.3]} 22... Rxa2 {[%clk 0:02:09.2]} 23. Rd1 {[%clk
0:02:00.8]} 23... f5 {[%clk 0:02:01.1]} 24. Rd6 {[%clk 0:01:57.1]} 24... Kc7
{[%clk 0:01:44.8]} 25. Rcd3 {[%clk 0:01:56]} 25... Bxe3+ {[%clk 0:01:45.3]} 26.
Kf3 {[%clk 0:01:55.1]} 26... Rxe2 {[%clk 0:01:14.2]} 27. Rd7+ {[%clk 0:01:54.1]}
27... Kc8 {[%clk 0:01:14.6]} 28. Rxa7 {[%clk 0:01:41.5]} 28... Bd4 {[%clk
0:00:57.7]} 29. b4 {[%clk 0:01:41.8]} 29... g5 {[%clk 0:00:51.9]} 30. b5 {[%clk
0:01:41.2]} 30... h5 {[%clk 0:00:48.8]} 31. b6 {[%clk 0:01:30.9]} 31... R8e3+
{[%clk 0:00:39.9]} 32. Rxe3 {[%clk 0:01:31.3]} 32... Rxe3+ {[%clk 0:00:41.5]}
33. Kf2 {[%clk 0:01:32]} 33... g4 {[%clk 0:00:37.4]} 34. Rh7 {[%clk 0:01:21]}
34... g3+ {[%clk 0:00:37.7]} 35. Kf1 {[%clk 0:01:21.7]} 35... Bc3 {[%clk
0:00:38.9]} 0-1

[Event "*** Titled Tuesday Blitz"]
[Site "Chess.com"]
[Date "2018.12.04"]
[Round "9"]
[White "BlackBoarder"]
[Black "BillForster"]
[Result "1-0"]
[WhiteElo "2482"]
[BlackElo "1727"]
[TimeControl "180+2"]
[EndTime "15:08:30 PST"]
[Termination "BlackBoarder won by resignation"]

1. e4 {[%clk 0:03:01.9]} 1... c5 {[%clk 0:02:59.9]} 2. Nf3 {[%clk 0:03:02]} 2...
a6 {[%clk 0:03:00.1]} 3. c3 {[%clk 0:03:03.1]} 3... e6 {[%clk 0:03:00.2]} 4. d4
{[%clk 0:03:04.4]} 4... d5 {[%clk 0:03:01.2]} 5. exd5 {[%clk 0:03:05]} 5... Qxd5
{[%clk 0:03:00.3]} 6. Be2 {[%clk 0:03:00.1]} 6... Nf6 {[%clk 0:02:59.3]} 7. O-O
{[%clk 0:03:00.9]} 7... Nc6 {[%clk 0:02:56]} 8. Be3 {[%clk 0:03:01.8]} 8... Be7
{[%clk 0:02:53.5]} 9. dxc5 {[%clk 0:03:02]} 9... O-O {[%clk 0:02:43.6]} 10. b4
{[%clk 0:03:01.7]} 10... Rd8 {[%clk 0:02:22.5]} 11. Nbd2 {[%clk 0:02:52.6]}
11... Qd7 {[%clk 0:02:02.4]} 12. Nc4 {[%clk 0:02:37.6]} 12... Nd5 {[%clk
0:01:51.6]} 13. Qc1 {[%clk 0:02:14.7]} 13... Nxe3 {[%clk 0:01:24.3]} 14. Qxe3
{[%clk 0:02:12.2]} 14... Qc7 {[%clk 0:01:17.1]} 15. Nb6 {[%clk 0:02:00.5]} 15...
Rb8 {[%clk 0:01:14.6]} 16. Rfd1 {[%clk 0:02:00.6]} 16... Bd7 {[%clk 0:01:02.9]}
17. Rd2 {[%clk 0:01:50.6]} 17... Be8 {[%clk 0:01:03]} 18. Rad1 {[%clk
0:01:51.3]} 18... Rxd2 {[%clk 0:00:58.6]} 19. Rxd2 {[%clk 0:01:53.2]} 19... Rd8
{[%clk 0:00:59.1]} 20. a3 {[%clk 0:01:50.5]} 20... Bf6 {[%clk 0:00:45.2]} 21. h3
{[%clk 0:01:40.1]} 21... h6 {[%clk 0:00:44.1]} 22. Nc4 {[%clk 0:01:39.9]} 22...
Be7 {[%clk 0:00:28.9]} 23. g3 {[%clk 0:01:32.7]} 23... Rd7 {[%clk 0:00:25.1]}
24. h4 {[%clk 0:01:31.1]} 24... Qd8 {[%clk 0:00:25.1]} 25. Kg2 {[%clk
0:01:25.5]} 25... Nb8 {[%clk 0:00:17.8]} 26. Rc2 {[%clk 0:01:15.1]} 26... Nc6
{[%clk 0:00:17.7]} 27. Nb6 {[%clk 0:01:14.4]} 27... Rc7 {[%clk 0:00:13.2]} 28.
Rd2 {[%clk 0:01:15.1]} 28... Qb8 {[%clk 0:00:11.9]} 29. Qf4 {[%clk 0:01:13.4]}
29... Qa7 {[%clk 0:00:07.7]} 30. Qxc7 {[%clk 0:01:13.1]} 1-0

[Event "*** Titled Tuesday Blitz"]
[Site "Chess.com"]
[Date "2018.12.04"]
[Round "9"]
[White "ChristopherYoo"]
[Black "SCIM"]
[Result "1-0"]
[WhiteElo "2424"]
[BlackElo "2426"]
[TimeControl "180+2"]
[EndTime "15:08:37 PST"]
[Termination "ChristopherYoo won by resignation"]

1. e4 {[%clk 0:03:01.9]} 1... c5 {[%clk 0:02:59.6]} 2. Nf3 {[%clk 0:03:01.9]}
2... e6 {[%clk 0:02:59.9]} 3. d4 {[%clk 0:03:02.7]} 3... cxd4 {[%clk 0:02:59.1]}
4. Nxd4 {[%clk 0:03:04.6]} 4... Nc6 {[%clk 0:03:00]} 5. Nc3 {[%clk 0:03:03.6]}
5... Qc7 {[%clk 0:03:00.3]} 6. Be3 {[%clk 0:03:03.9]} 6... a6 {[%clk 0:03:00.6]}
7. Qf3 {[%clk 0:03:04.5]} 7... Nf6 {[%clk 0:03:00.7]} 8. O-O-O {[%clk
0:03:01.8]} 8... Ne5 {[%clk 0:03:01.2]} 9. Qg3 {[%clk 0:03:02.1]} 9... b5 {[%clk
0:03:02.5]} 10. f4 {[%clk 0:03:02.9]} 10... Neg4 {[%clk 0:03:02.6]} 11. Bg1
{[%clk 0:03:03.7]} 11... Nh6 {[%clk 0:03:03.5]} 12. e5 {[%clk 0:02:55.6]} 12...
Nd5 {[%clk 0:02:36]} 13. Nxd5 {[%clk 0:02:52.8]} 13... exd5 {[%clk 0:02:35.8]}
14. f5 {[%clk 0:02:22]} 14... g6 {[%clk 0:02:29.4]} 15. f6 {[%clk 0:01:49.5]}
15... d6 {[%clk 0:02:24.1]} 16. Re1 {[%clk 0:01:42.8]} 16... Be6 {[%clk
0:02:15.3]} 17. exd6 {[%clk 0:01:28.7]} 17... Qxd6 {[%clk 0:01:58.3]} 18. Qh3
{[%clk 0:00:42.8]} 18... Nf5 {[%clk 0:01:47.2]} 19. Nxe6 {[%clk 0:00:39.6]}
19... fxe6 {[%clk 0:01:47.7]} 20. g4 {[%clk 0:00:39]} 20... Nh6 {[%clk
0:01:43.7]} 21. Kb1 {[%clk 0:00:35]} 21... O-O-O {[%clk 0:01:36.6]} 22. Bd4
{[%clk 0:00:31.4]} 22... Nf7 {[%clk 0:01:30.9]} 23. Bg2 {[%clk 0:00:24.5]} 23...
e5 {[%clk 0:01:29.9]} 24. Qc3+ {[%clk 0:00:23.9]} 24... Kb8 {[%clk 0:01:22.6]}
25. Rxe5 {[%clk 0:00:21.4]} 25... Rc8 {[%clk 0:01:15.6]} 26. Qg3 {[%clk
0:00:20.8]} 26... Rc7 {[%clk 0:00:55]} 27. Re8+ {[%clk 0:00:16.1]} 27... Kb7
{[%clk 0:00:55.8]} 28. Qxd6 {[%clk 0:00:12.7]} 28... Nxd6 {[%clk 0:00:56.3]} 29.
Bxd5+ {[%clk 0:00:13.7]} 1-0

[Event "*** Titled Tuesday Blitz"]
[Site "Chess.com"]
[Date "2018.12.04"]
[Round "9"]
[White "volcanoexplorer"]
[Black "Winehouse83"]
[Result "0-1"]
[WhiteElo "2394"]
[BlackElo "2449"]
[TimeControl "180+2"]
[EndTime "15:08:38 PST"]
[Termination "Winehouse83 won on time"]

1. e4 {[%clk 0:03:01.9]} 1... e5 {[%clk 0:03:00.6]} 2. Nf3 {[%clk 0:03:02.8]}
2... Nc6 {[%clk 0:03:02]} 3. Bc4 {[%clk 0:03:04]} 3... Bc5 {[%clk 0:03:02.3]} 4.
O-O {[%clk 0:03:05.2]} 4... Nf6 {[%clk 0:03:03.3]} 5. d3 {[%clk 0:03:06.7]} 5...
O-O {[%clk 0:03:03.9]} 6. Re1 {[%clk 0:03:06.6]} 6... Ng4 {[%clk 0:02:57.2]} 7.
Re2 {[%clk 0:03:01.6]} 7... Qf6 {[%clk 0:02:24.7]} 8. h3 {[%clk 0:02:44.5]} 8...
Nd4 {[%clk 0:02:17.7]} 9. hxg4 {[%clk 0:02:18.3]} 9... Nxf3+ {[%clk 0:02:11.6]}
10. gxf3 {[%clk 0:02:16.9]} 10... Qxf3 {[%clk 0:02:12.3]} 11. Be3 {[%clk
0:01:26.5]} 11... Bxe3 {[%clk 0:02:01.9]} 12. fxe3 {[%clk 0:01:28.4]} 12... d5
{[%clk 0:01:59.2]} 13. Bxd5 {[%clk 0:01:07.3]} 13... Bxg4 {[%clk 0:01:59.6]} 14.
Nc3 {[%clk 0:00:58.5]} 14... Qg3+ {[%clk 0:01:59.2]} 15. Rg2 {[%clk 0:00:30.2]}
15... Qxe3+ {[%clk 0:01:59.5]} 16. Kh1 {[%clk 0:00:27.1]} 16... Bxd1 {[%clk
0:01:58.8]} 17. Rxd1 {[%clk 0:00:29]} 17... c6 {[%clk 0:01:57.7]} 18. Bb3 {[%clk
0:00:29.1]} 18... Rad8 {[%clk 0:01:55.8]} 19. Ne2 {[%clk 0:00:10.4]} 19... Rd6
{[%clk 0:01:54.8]} 20. Ng1 {[%clk 0:00:11.5]} 20... Rh6+ {[%clk 0:01:53.8]} 21.
Rh2 {[%clk 0:00:12.8]} 21... Rxh2+ {[%clk 0:01:48.6]} 22. Kxh2 {[%clk
0:00:14.7]} 22... Kh8 {[%clk 0:01:47.6]} 23. Rf1 {[%clk 0:00:15.5]} 23... f5
{[%clk 0:01:48.1]} 24. exf5 {[%clk 0:00:14.5]} 24... Rf6 {[%clk 0:01:49]} 25.
Rf3 {[%clk 0:00:12.2]} 25... Qg5 {[%clk 0:01:44.7]} 26. Nh3 {[%clk 0:00:10.3]}
26... Qg4 {[%clk 0:01:42]} 27. Rg3 {[%clk 0:00:05.9]} 27... Qxf5 {[%clk
0:01:40]} 28. Ng5 {[%clk 0:00:06.5]} 28... h6 {[%clk 0:01:39]} 29. Ne4 {[%clk
0:00:06.7]} 29... Qh5+ {[%clk 0:01:38.4]} 30. Kg2 {[%clk 0:00:06.1]} 30... Qe2+
{[%clk 0:01:38.5]} 31. Kh3 {[%clk 0:00:06.5]} 31... Rf1 {[%clk 0:01:38.5]} 32.
Kh4 {[%clk 0:00:02.8]} 32... g5+ {[%clk 0:01:38.3]} 33. Nxg5 {[%clk 0:00:04]}
33... hxg5+ {[%clk 0:01:36.4]} 34. Kxg5 {[%clk 0:00:05.6]} 34... Qh2 {[%clk
0:01:34.1]} 35. Rg4 {[%clk 0:00:06.4]} 35... Rf4 {[%clk 0:01:33.6]} 0-1

[Event "*** Titled Tuesday Blitz"]
[Site "Chess.com"]
[Date "2018.12.04"]
[Round "9"]
[White "Bryakin_Mikhail"]
[Black "Quiet_Desperation"]
[Result "1-0"]
[WhiteElo "2712"]
[BlackElo "2160"]
[TimeControl "180+2"]
[EndTime "15:08:40 PST"]
[Termination "Bryakin_Mikhail won by resignation"]

1. d4 {[%clk 0:02:58]} 1... Nf6 {[%clk 0:03:00.1]} 2. c4 {[%clk 0:02:57.3]} 2...
e6 {[%clk 0:03:01.5]} 3. Nf3 {[%clk 0:02:58]} 3... Bb4+ {[%clk 0:03:02.6]} 4.
Bd2 {[%clk 0:02:58.2]} 4... Qe7 {[%clk 0:03:03.7]} 5. g3 {[%clk 0:02:59.3]} 5...
Nc6 {[%clk 0:03:05]} 6. Bg2 {[%clk 0:03:00.4]} 6... Bxd2+ {[%clk 0:03:06.3]} 7.
Qxd2 {[%clk 0:02:57.7]} 7... Ne4 {[%clk 0:03:07.3]} 8. Qc2 {[%clk 0:02:58.4]}
8... Qb4+ {[%clk 0:03:08.2]} 9. Kf1 {[%clk 0:02:48.5]} 9... d5 {[%clk
0:03:02.7]} 10. b3 {[%clk 0:02:44.7]} 10... O-O {[%clk 0:02:58.4]} 11. a3 {[%clk
0:02:45.5]} 11... Qe7 {[%clk 0:02:59.1]} 12. Nc3 {[%clk 0:02:43.4]} 12... Nxc3
{[%clk 0:02:59]} 13. Qxc3 {[%clk 0:02:45.3]} 13... f5 {[%clk 0:02:53.7]} 14. e3
{[%clk 0:02:42.9]} 14... Bd7 {[%clk 0:02:34.3]} 15. Ke2 {[%clk 0:02:43.7]} 15...
Rac8 {[%clk 0:02:34.6]} 16. Rhd1 {[%clk 0:02:40]} 16... Rfe8 {[%clk 0:02:35.8]}
17. Kf1 {[%clk 0:02:40.4]} 17... dxc4 {[%clk 0:02:31.6]} 18. bxc4 {[%clk
0:02:39.3]} 18... Rcd8 {[%clk 0:02:30.1]} 19. Rab1 {[%clk 0:02:35.8]} 19... b6
{[%clk 0:02:30.5]} 20. Kg1 {[%clk 0:02:36.2]} 20... e5 {[%clk 0:02:25.5]} 21.
dxe5 {[%clk 0:02:02.4]} 21... Nxe5 {[%clk 0:02:25.2]} 22. Nxe5 {[%clk 0:02:00]}
22... Qxe5 {[%clk 0:02:26.2]} 23. Qxe5 {[%clk 0:02:00.7]} 23... Rxe5 {[%clk
0:02:27.5]} 24. Bc6 {[%clk 0:02:02.1]} 24... Re7 {[%clk 0:02:27.4]} 25. Rd5
{[%clk 0:01:51.5]} 25... Kf7 {[%clk 0:02:28.5]} 26. Rbd1 {[%clk 0:01:39.3]}
26... Ke6 {[%clk 0:02:23.9]} 27. h4 {[%clk 0:01:25.8]} 27... Bxc6 {[%clk
0:02:24]} 28. Rxd8 {[%clk 0:01:25.7]} 28... Bf3 {[%clk 0:02:23.1]} 29. R1d4
{[%clk 0:01:23.9]} 29... Kf6 {[%clk 0:02:22]} 30. Kf1 {[%clk 0:01:22]} 30... Re5
{[%clk 0:02:14.8]} 31. R8d7 {[%clk 0:01:18.8]} 31... Ra5 {[%clk 0:02:08.3]} 32.
Rd3 {[%clk 0:01:19.9]} 32... Rc5 {[%clk 0:02:04.6]} 33. Rc3 {[%clk 0:01:13.2]}
33... b5 {[%clk 0:01:59.1]} 34. Ke1 {[%clk 0:01:11.1]} 34... a5 {[%clk
0:01:54.5]} 35. Kd2 {[%clk 0:01:08.3]} 35... b4 {[%clk 0:01:55.6]} 36. axb4
{[%clk 0:01:09.6]} 36... axb4 {[%clk 0:01:56.7]} 37. Rc1 {[%clk 0:01:11.2]}
37... b3 {[%clk 0:01:56.5]} 38. Kc3 {[%clk 0:01:07.6]} 38... b2 {[%clk
0:01:44.3]} 39. Kxb2 {[%clk 0:01:07.7]} 39... h6 {[%clk 0:01:44.6]} 40. Kc3
{[%clk 0:01:07.9]} 40... g5 {[%clk 0:01:36.8]} 41. hxg5+ {[%clk 0:01:08.6]}
41... hxg5 {[%clk 0:01:38.2]} 42. Rb1 {[%clk 0:01:09.8]} 42... Be4 {[%clk
0:01:35.4]} 43. Rb5 {[%clk 0:01:09.5]} 43... Rc6 {[%clk 0:01:35.5]} 44. Kd4
{[%clk 0:01:07.5]} 44... g4 {[%clk 0:01:30.7]} 45. Rc5 {[%clk 0:01:04.7]} 45...
Ra6 {[%clk 0:01:27.7]} 46. Rcxc7 {[%clk 0:01:05.6]} 46... Ra3 {[%clk 0:01:26.6]}
47. Rd6+ {[%clk 0:01:06.4]} 47... Kg5 {[%clk 0:01:27.3]} 48. Ke5 {[%clk
0:01:05.4]} 48... Ra5+ {[%clk 0:01:26.8]} 49. c5 {[%clk 0:01:05.6]} 1-0

[Event "*** Titled Tuesday Blitz"]
[Site "Chess.com"]
[Date "2018.12.04"]
[Round "9"]
[White "ruvat"]
[Black "BasilSmash"]
[Result "0-1"]
[WhiteElo "2292"]
[BlackElo "2378"]
[TimeControl "180+2"]
[EndTime "15:09:01 PST"]
[Termination "BasilSmash won on time"]

1. d4 {[%clk 0:03:01.9]} 1... d5 {[%clk 0:03:00.6]} 2. Nf3 {[%clk 0:03:01.5]}
2... Nf6 {[%clk 0:03:01.1]} 3. c4 {[%clk 0:03:02.3]} 3... e6 {[%clk 0:03:02.2]}
4. g3 {[%clk 0:03:02.1]} 4... Be7 {[%clk 0:03:03]} 5. Bg2 {[%clk 0:03:01.9]}
5... O-O {[%clk 0:03:04.2]} 6. O-O {[%clk 0:03:02.7]} 6... dxc4 {[%clk
0:03:05.5]} 7. Ne5 {[%clk 0:03:02.4]} 7... Nc6 {[%clk 0:03:04.6]} 8. Nxc6 {[%clk
0:03:02.6]} 8... bxc6 {[%clk 0:03:05.3]} 9. Na3 {[%clk 0:03:03.9]} 9... Bxa3
{[%clk 0:03:06.1]} 10. bxa3 {[%clk 0:03:05.5]} 10... Rb8 {[%clk 0:03:04.4]} 11.
Qa4 {[%clk 0:03:01.6]} 11... Nd5 {[%clk 0:03:01.1]} 12. Qxc4 {[%clk 0:02:41.3]}
12... Rb6 {[%clk 0:02:59.4]} 13. Rd1 {[%clk 0:02:31.4]} 13... Ba6 {[%clk
0:02:59.6]} 14. Qc2 {[%clk 0:02:32.4]} 14... Qd6 {[%clk 0:02:54.7]} 15. e4
{[%clk 0:02:28.1]} 15... Ne7 {[%clk 0:02:53.7]} 16. a4 {[%clk 0:02:11.9]} 16...
Rfb8 {[%clk 0:02:52.4]} 17. a5 {[%clk 0:02:01.6]} 17... R6b7 {[%clk 0:02:49.2]}
18. a4 {[%clk 0:02:01]} 18... Qd7 {[%clk 0:02:42.1]} 19. Ba3 {[%clk 0:01:55.7]}
19... Nc8 {[%clk 0:02:40.6]} 20. Rac1 {[%clk 0:01:42.6]} 20... Ne7 {[%clk
0:02:37.6]} 21. Bxe7 {[%clk 0:01:34]} 21... Qxe7 {[%clk 0:02:39.5]} 22. Qxc6
{[%clk 0:01:33]} 22... Be2 {[%clk 0:02:38.9]} 23. Re1 {[%clk 0:01:31.8]} 23...
Bh5 {[%clk 0:02:39.1]} 24. a6 {[%clk 0:01:25.8]} 24... Rb6 {[%clk 0:02:38.8]}
25. Qxc7 {[%clk 0:01:26.7]} 25... Qxc7 {[%clk 0:02:40.2]} 26. Rxc7 {[%clk
0:01:27.4]} 26... Rxa6 {[%clk 0:02:42.1]} 27. Rec1 {[%clk 0:01:20]} 27... g5
{[%clk 0:02:41.2]} 28. R7c4 {[%clk 0:01:15.5]} 28... Be2 {[%clk 0:02:37.7]} 29.
Rc8+ {[%clk 0:01:13.1]} 29... Rxc8 {[%clk 0:02:37.7]} 30. Rxc8+ {[%clk
0:01:14.4]} 30... Kg7 {[%clk 0:02:38.8]} 31. Rc2 {[%clk 0:00:55.9]} 31... Bd3
{[%clk 0:02:38.7]} 32. Ra2 {[%clk 0:00:48.9]} 32... g4 {[%clk 0:02:36.4]} 33.
Bf1 {[%clk 0:00:48.7]} 33... Bxf1 {[%clk 0:02:34.8]} 34. Kxf1 {[%clk 0:00:50.6]}
34... f5 {[%clk 0:02:34]} 35. e5 {[%clk 0:00:45.5]} 35... Kg6 {[%clk 0:02:26]}
36. Ke2 {[%clk 0:00:46.2]} 36... f4 {[%clk 0:02:26]} 37. Kd3 {[%clk 0:00:43.4]}
37... Kf5 {[%clk 0:02:26.8]} 38. a5 {[%clk 0:00:39.2]} 38... f3 {[%clk
0:02:24.6]} 39. Kc4 {[%clk 0:00:32.5]} 39... Rc6+ {[%clk 0:02:24.7]} 40. Kb5
{[%clk 0:00:33]} 40... Rc7 {[%clk 0:02:20.9]} 41. Rd2 {[%clk 0:00:14.5]} 41...
Ke4 {[%clk 0:02:17.8]} 42. a6 {[%clk 0:00:13]} 42... h5 {[%clk 0:02:17]} 43. Kb4
{[%clk 0:00:11]} 43... Rc6 {[%clk 0:02:16.1]} 44. Kb5 {[%clk 0:00:10.6]} 44...
Rb6+ {[%clk 0:02:17]} 45. Ka5 {[%clk 0:00:11.3]} 45... Kd5 {[%clk 0:02:11.9]}
46. Ka4 {[%clk 0:00:03.5]} 46... Rxa6+ {[%clk 0:02:12.3]} 47. Kb4 {[%clk
0:00:04.6]} 47... Rc6 {[%clk 0:02:08.1]} 0-1

[Event "*** Titled Tuesday Blitz"]
[Site "Chess.com"]
[Date "2018.12.04"]
[Round "9"]
[White "Superfelix"]
[Black "snowlord"]
[Result "0-1"]
[WhiteElo "2396"]
[BlackElo "2622"]
[TimeControl "180+2"]
[EndTime "15:09:18 PST"]
[Termination "snowlord won by resignation"]

1. e4 {[%clk 0:03:01.9]} 1... c5 {[%clk 0:03:00.6]} 2. Nc3 {[%clk 0:03:02.4]}
2... Nc6 {[%clk 0:03:00.9]} 3. Bb5 {[%clk 0:03:02.7]} 3... Nd4 {[%clk
0:03:01.3]} 4. Nf3 {[%clk 0:03:03.1]} 4... e6 {[%clk 0:03:02.6]} 5. O-O {[%clk
0:03:03.9]} 5... a6 {[%clk 0:03:03.3]} 6. Bd3 {[%clk 0:03:04.5]} 6... Nc6 {[%clk
0:03:03.8]} 7. Re1 {[%clk 0:03:03.1]} 7... g5 {[%clk 0:03:04.9]} 8. h3 {[%clk
0:02:52.8]} 8... h5 {[%clk 0:03:05.4]} 9. Nh2 {[%clk 0:02:53.3]} 9... g4 {[%clk
0:02:59.4]} 10. hxg4 {[%clk 0:02:48.5]} 10... hxg4 {[%clk 0:03:01.3]} 11. Qxg4
{[%clk 0:02:47.6]} 11... Nf6 {[%clk 0:02:59.6]} 12. Qg3 {[%clk 0:02:46.2]} 12...
Nh5 {[%clk 0:02:59.5]} 13. Qe3 {[%clk 0:02:42.7]} 13... Bh6 {[%clk 0:02:16.1]}
14. Qxc5 {[%clk 0:02:40.1]} 14... Nf4 {[%clk 0:01:46]} 15. Bf1 {[%clk
0:02:36.2]} 15... d6 {[%clk 0:01:39.2]} 16. Qc4 {[%clk 0:02:30.9]} 16... Ne5
{[%clk 0:01:27.8]} 17. Qd4 {[%clk 0:02:31.5]} 17... Qh4 {[%clk 0:01:26.2]} 18.
Re3 {[%clk 0:02:19.7]} 18... Bg7 {[%clk 0:01:16.8]} 19. Rh3 {[%clk 0:02:11.4]}
19... Nxh3+ {[%clk 0:01:16.5]} 20. gxh3 {[%clk 0:02:12.6]} 20... Qg5+ {[%clk
0:00:41.1]} 21. Kh1 {[%clk 0:02:03]} 21... Ng4 {[%clk 0:00:36]} 22. Qb6 {[%clk
0:01:45.9]} 22... Nxh2 {[%clk 0:00:31.9]} 23. d4 {[%clk 0:01:36.2]} 23... Qf6
{[%clk 0:00:20.8]} 24. Bg2 {[%clk 0:01:32.2]} 24... Qxf2 {[%clk 0:00:18.2]} 25.
Qxd6 {[%clk 0:01:18.3]} 25... Nf3 {[%clk 0:00:16.8]} 26. Bf4 {[%clk 0:01:13.2]}
26... Nh4 {[%clk 0:00:11.4]} 27. Rg1 {[%clk 0:01:12.2]} 27... Nxg2 {[%clk
0:00:11.7]} 28. Rxg2 {[%clk 0:01:12.1]} 28... Rxh3+ {[%clk 0:00:12.5]} 29. Bh2
{[%clk 0:01:13.2]} 29... Qf1+ {[%clk 0:00:12]} 30. Rg1 {[%clk 0:01:14.5]} 30...
Qf3+ {[%clk 0:00:13.4]} 31. Rg2 {[%clk 0:01:15.9]} 31... Bh6 {[%clk 0:00:08.4]}
32. Ne2 {[%clk 0:01:01.8]} 32... Bd7 {[%clk 0:00:05.8]} 33. Ng1 {[%clk
0:01:02.5]} 33... Rxh2+ {[%clk 0:00:04.7]} 34. Kxh2 {[%clk 0:01:02.1]} 34...
Bf4+ {[%clk 0:00:04.6]} 35. Kh1 {[%clk 0:00:59.3]} 35... Qh5+ {[%clk 0:00:05.7]}
36. Nh3 {[%clk 0:01:00.6]} 36... Qxh3+ {[%clk 0:00:06.7]} 37. Kg1 {[%clk
0:01:02.5]} 37... Bxd6 {[%clk 0:00:07.4]} 38. Rg8+ {[%clk 0:01:03.5]} 38... Ke7
{[%clk 0:00:08.8]} 39. Rg4 {[%clk 0:01:05]} 39... Qxg4+ {[%clk 0:00:09.7]} 0-1

[Event "*** Titled Tuesday Blitz"]
[Site "Chess.com"]
[Date "2018.12.04"]
[Round "9"]
[White "NateSolon"]
[Black "GMKrikor"]
[Result "0-1"]
[WhiteElo "2480"]
[BlackElo "2674"]
[TimeControl "180+2"]
[EndTime "15:09:23 PST"]
[Termination "GMKrikor won by checkmate"]

1. e4 {[%clk 0:03:01.9]} 1... c5 {[%clk 0:03:01.1]} 2. Nc3 {[%clk 0:03:02.1]}
2... e6 {[%clk 0:02:59.8]} 3. g3 {[%clk 0:03:02.1]} 3... d5 {[%clk 0:03:00.4]}
4. exd5 {[%clk 0:03:03.3]} 4... exd5 {[%clk 0:03:02.3]} 5. d4 {[%clk 0:03:04.4]}
5... cxd4 {[%clk 0:03:02]} 6. Qxd4 {[%clk 0:03:05.2]} 6... Nf6 {[%clk
0:03:03.4]} 7. Bg5 {[%clk 0:02:59.8]} 7... Be7 {[%clk 0:03:03.4]} 8. O-O-O
{[%clk 0:02:54.7]} 8... Nc6 {[%clk 0:03:04]} 9. Qa4 {[%clk 0:02:32.3]} 9... O-O
{[%clk 0:03:04.3]} 10. Bxf6 {[%clk 0:02:29.1]} 10... Bxf6 {[%clk 0:03:06.2]} 11.
Nxd5 {[%clk 0:02:29.8]} 11... Be6 {[%clk 0:03:07.5]} 12. Bg2 {[%clk 0:02:22.4]}
12... Bxd5 {[%clk 0:03:03.1]} 13. Bxd5 {[%clk 0:02:18.9]} 13... Qb6 {[%clk
0:03:04.4]} 14. Qb3 {[%clk 0:02:04.6]} 14... Qxf2 {[%clk 0:02:51.6]} 15. Nh3
{[%clk 0:02:05]} 15... Qc5 {[%clk 0:02:49.1]} 16. Nf4 {[%clk 0:01:53.1]} 16...
Nd4 {[%clk 0:02:29.1]} 17. Qc4 {[%clk 0:01:48.8]} 17... Qb6 {[%clk 0:02:30.1]}
18. c3 {[%clk 0:01:41.2]} 18... Rac8 {[%clk 0:02:22.9]} 19. Bxf7+ {[%clk
0:01:30.2]} 19... Kh8 {[%clk 0:02:24]} 20. Qd5 {[%clk 0:01:31.2]} 20... Nb5
{[%clk 0:01:36.5]} 21. Qh5 {[%clk 0:01:21.1]} 21... Rxf7 {[%clk 0:01:32.6]} 22.
Qxf7 {[%clk 0:01:21.8]} 22... Nxc3 {[%clk 0:01:29.9]} 23. Qe6 {[%clk 0:00:41.4]}
23... Nxa2+ {[%clk 0:00:17.1]} 24. Kd2 {[%clk 0:00:42.5]} 24... Qxb2+ {[%clk
0:00:16.8]} 25. Ke1 {[%clk 0:00:44]} 25... Rf8 {[%clk 0:00:06.3]} 26. Ng6+
{[%clk 0:00:29.4]} 26... hxg6 {[%clk 0:00:07.6]} 27. Qh3+ {[%clk 0:00:30.9]}
27... Kg8 {[%clk 0:00:08.8]} 28. Qe6+ {[%clk 0:00:32]} 28... Rf7 {[%clk
0:00:06.2]} 29. Qe8+ {[%clk 0:00:33.2]} 29... Kh7 {[%clk 0:00:05.4]} 30. Qxf7
{[%clk 0:00:34.4]} 30... Nc3 {[%clk 0:00:04.7]} 31. Qd7 {[%clk 0:00:28.3]} 31...
Qe2# {[%clk 0:00:05]} 0-1